Cogmind - Beta 15 @@@ ROGUE MODE // 2025.08.29 @ 08:20:41 Player: beans Result: Destroyed by S-27 Virus with Autogun Performance ------------- Evolutions (3) 1500 Regions Visited (4) 800 Robots Destroyed (85) 425 Value Destroyed (2381) 2381 Prototype IDs (4) 80 Alien Tech Used (0) 0 Bonus (0) 0 TOTAL SCORE: 5186 Bonus ------- None Cogmind --------- Core Integrity 0/700 Matter 295/500 Energy 100/100 System Corruption 2% Temperature Cool (0) Movement Flying (32) Location -7/Factory Parts ------- > --- POWER (1) -------- (None) > --- PROPULSION (3) --- Cesium-ion Thruster Cesium-ion Thruster > --- UTILITY (5) ------ High-capacity Matter Pod Improved Signal Interpreter Hacking Suite > --- WEAPON (4) ------- Precision Assault Rifle > --- INVENTORY (5) ---- Autogun Precision Assault Rifle Plasma Cutter Peak State ------------ > --- POWER ------------ Light Nuclear Core > --- PROPULSION ------- Improved Titanium Leg Improved Titanium Leg > --- UTILITY ---------- Cryofiber Web High-capacity Matter Pod Improved Signal Interpreter Particle Charger Hacking Suite > --- WEAPON ----------- Improved EM Pulse Cannon Enhanced Autogun Enhanced Autogun Enhanced Autogun > --- INVENTORY -------- Improved Assault Rifle Flak Cannon Rocket Launcher Plasma Cutter [Rating: 41] Favorites ----------- Power Light Nuclear Core Engine Ion Engine Power Core Light Nuclear Core Propulsion Aluminum Leg Leg Aluminum Leg Hover Unit Improved Airjet Flight Unit Cesium-ion Thruster Utility High-capacity Matter Pod Device Cryofiber Web Storage High-capacity Matter Pod Processor Improved Signal Interpreter Hackware Hacking Suite Weapon Enhanced Autogun Energy Gun Medium Laser Energy Cannon Ion Cannon Ballistic Gun Enhanced Autogun Ballistic Cannon Flak Cannon Launcher Rocket Launcher Impact Weapon Power Maul Build | -11 -10 -9 -8 -7 ------- Run | Yrd Mat Mat Mat Fac Slots Evolved 6 | . . 2 2 2 Power . | . . . . . Propulsion 1 | . . . . 1 Utility 3 | . . 2 . 1 Weapon 2 | . . . 2 . Parts Attached 45 | 4 1 8 12 20 Power 6 | . . 2 2 2 Engine 2 | . . 2 . . Core 4 | . . . 2 2 Reactor . | . . . . . Propulsion 11 | 2 . 2 1 6 Treads . | . . . . . Leg 8 | 2 . 2 1 3 Wheel . | . . . . . Hover 1 | . . . . 1 Flight 2 | . . . . 2 Utility 10 | . 1 1 4 4 Device 6 | . 1 . 4 1 Storage 1 | . . 1 . . Processor 2 | . . . . 2 Hackware 1 | . . . . 1 Protection . | . . . . . Artifact . | . . . . . Weapon 18 | 2 . 3 5 8 Energy Gun 4 | 2 . . 1 1 Energy Cannon 2 | . . . 1 1 Ballistic Gun 9 | . . 3 3 3 Ballistic Cannon 1 | . . . . 1 Launcher 1 | . . . . 1 Special Weapon . | . . . . . Impact Weapon 1 | . . . . 1 Slashing Weapon . | . . . . . Piercing Weapon . | . . . . . Special Melee Weapon . | . . . . . Unidentified Prototypes 4 | . . 1 1 2 Parts Lost 27 | . . 4 2 21 Power 5 | . . 1 1 3 Propulsion 7 | . . 2 . 5 Utility 5 | . . 1 1 3 Weapon 10 | . . . . 10 Highest Loss Streak 14 | . . 1 1 14 To Critical Strikes . | . . . . . Average Backups 3 | . . 2 4 4 Power . | . . . . . Propulsion . | . . . . . Utility . | . . . . . Weapon 2 | . . . 3 3 Tool/Special . | . . . . . Unused Backups 3 | . . 1 . 2 Power . | . . . . . Propulsion . | . . . . . Utility . | . . . . . Weapon 2 | . . 1 . 1 Tool/Special 1 | . . . . 1 Average Slot Usage (%) 66 | . 60 48 77 71 Engine 1 | . . . 4 . Core 2 | . . . 4 3 Leg 17 | . 28 20 18 11 Device 9 | . 3 3 17 9 Storage 5 | . . 1 9 7 Processor 2 | . . . . 7 Hackware 1 | . . . . 5 Energy Gun 6 | . 28 15 . . Energy Cannon 3 | . . . 8 4 Ballistic Gun 12 | . . 6 17 15 Peak Build Rating 41 | 4 5 11 27 41 Average Rating 18 | 2 4 5 21 30 On Entrance 9 | . 4 5 11 26 Naked Turns . | . . . . . Heaviest Build 32 | 3 4 15 26 32 Greatest Support 45 | 20 20 20 25 45 Greatest Overweight (x) 3 | . . 1 1 3 Average Overweight (x) . | . . . . . Largest Inventory Capacity 5 | 5 5 5 5 5 Average Capacity 5 | 5 5 5 5 5 Most Carried 5 | 2 1 5 5 5 Average Carried 3 | . . 2 4 4 Final Capacity 5 | 5 5 5 5 5 Final Carried 5 | . . 4 5 3 Class Distribution -------------------- 49% | Mutant 46% | Gunner 3% | Sprinter Dominant Class ---------------- Mutant | -10/Materials Mutant | -9/Materials Gunner | -8/Materials Gunner | -7/Factory Resources | -11 -10 -9 -8 -7 ----------- Run | Yrd Mat Mat Mat Fac Matter Collected 1830 | 162 88 406 497 677 Remotely . | . . . . . Salvage Created 3036 | . 197 727 1125 987 Parts 178 | . 13 46 66 53 Haulers Intercepted 3 | . . 1 1 1 Recyclers Shooed 4 | . 1 1 2 . Parts Field Recycled . | . . . . . Retrieved Matter . | . . . . . Parts Self-Destructed . | . . . . . Prevented . | . . . . . Kills | -11 -10 -9 -8 -7 ------- Run | Yrd Mat Mat Mat Fac Combat Hostiles Destroyed 56 | . 6 15 14 21 Guns 47 | . 6 15 10 16 Cannons 5 | . . . 4 1 AOE 3 | . . . . 3 Classes Destroyed 15 | . 3 6 2 4 Worker 11 | . . 2 7 2 Builder 2 | . . . . 2 Tunneler 1 | . . 1 . . Hauler 3 | . . 1 1 1 Recycler 4 | . . 1 2 1 Operator 4 | . 1 . 1 2 Watcher 4 | . . 1 3 . Swarmer 10 | . 3 4 . 3 Cutter 3 | . . . 3 . Grunt 32 | . 3 9 8 12 Brawler 1 | . . . 1 . Duelist 1 | . . . . 1 Sentry 6 | . . 2 2 2 Hunter 1 | . . . . 1 Programmer 2 | . . . . 2 Best Kill Streak 13 | . 3 6 10 13 Combat Bots Only 7 | . 3 6 7 7 Max Kills in Single Turn 3 | . 1 2 2 3 Gunslinging 1 | . . 1 . 1 Exploded 1 | . . . . 1 Melee . | . . . . . Uniques/NPCs Destroyed . | . . . . . Combat | -11 -10 -9 -8 -7 -------- Run | Yrd Mat Mat Mat Fac Hostile Shots Fired 445 | . 20 48 65 312 Missed 172 | . 8 17 18 129 Hits 273 | . 12 31 47 183 Melee 12 | . . . 11 1 Projectile 261 | . 12 31 36 182 Critical Strikes 14 | . . 1 6 7 Damage Taken 4037 | . 140 451 768 2678 Core 1079 | . 52 127 195 705 Absorbed by Shields . | . . . . . Core Remaining (%) 77 | 100 79 68 64 . Volleys Fired 216 | 1 20 54 68 73 Largest 4 | 2 2 2 4 3 Hottest 111 | 90 90 90 111 110 Shots Fired 496 | 2 39 107 168 180 Gun 415 | 2 39 107 106 161 Cannon 77 | . . . 62 15 Launcher 4 | . . . . 4 Special . | . . . . . Kinetic 324 | . . 52 105 167 Thermal 164 | 2 39 55 63 5 Explosive 4 | . . . . 4 Electromagnetic 4 | . . . . 4 Robot Hit Streak 12 | . 4 12 12 7 Robot Miss Streak 8 | 2 4 3 5 8 Penetration Max . | . . . . . Secondary Targets 9 | . 1 3 . 5 Max Gunslinging Chain 1 | . 1 1 . 1 Shots Hit Robots 274 | . 21 53 102 98 Core Hits 148 | . 12 27 49 60 Critical Kills 2 | . . . . 2 Critical Parts Destroyed 3 | . . 1 1 1 Critical Strikes 8 | . 2 1 1 4 Burn 2 | . 2 . . . Destroy 4 | . . 1 1 2 Smash 2 | . . . . 2 Melee Attacks 3 | . . . . 3 Impact 3 | . . . . 3 Slashing . | . . . . . Piercing . | . . . . . Sneak Attacks . | . . . . . Combat Hostiles . | . . . . . Follow-up Attacks . | . . . . . Damage Inflicted 5875 | . 241 859 1952 2823 Guns 3758 | . 241 806 1076 1635 Cannons 1132 | . . . 876 256 Explosions 885 | . . 53 . 832 Melee 100 | . . . . 100 Ramming . | . . . . . Kinetic 3394 | . . 618 1060 1716 Thermal 1509 | . 241 241 892 135 Explosive 832 | . . . . 832 Electromagnetic 40 | . . . . 40 Impact 100 | . . . . 100 Slashing . | . . . . . Piercing . | . . . . . Highest Corruption 2 | . . . . 2 Average Corruption 1 | . . . . 1 Corruption Purged . | . . . . . Corruption Blocked . | . . . . . Effects 6 | . . . . 6 Message Errors 2 | . . . . 2 Matter Fused 2 | . . . . 2 Heat Flow Errors 1 | . . . . 1 Energy Discharges 1 | . . . . 1 Overload Shots . | . . . . . Overflow Damage 138 | . . . 5 133 Projectiles 5 | . . . 5 . Explosions 77 | . . . . 77 Melee 56 | . . . . 56 Knockbacks 2 | . . . . 2 Impact . | . . . . . Kinetic 2 | . . . . 2 Secondary . | . . . . . Self-Inflicted Damage 118 | . . 40 . 78 Shots 2 | . . 1 . 1 Rammed . | . . . . . Targets Rammed . | . . . . . Kicked . | . . . . . Crushed . | . . . . . Highest Temperature 245 | 15 105 48 119 245 Average Temperature 36 | 10 37 17 37 84 Received Heat Transfer 1446 | . 48 177 351 870 Siege Activations . | . . . . . Martial Activations . | . . . . . Shielding Activations . | . . . . . Robots Disrupted . | . . . . . Combat Hostiles . | . . . . . Robots Corrupted 1 | . . . . 1 Combat Hostiles 1 | . . . . 1 Parts Fried 4 | . . . . 4 Impact Corruptions 2 | . . . . 2 Robots Melted . | . . . . . Combat Hostiles . | . . . . . Parts Melted 4 | . 3 1 . . Heat Transferred 2946 | . 781 534 1369 262 Parts Sabotaged . | . . . . . Parts Stolen . | . . . . . Parts Stripped . | . . . . . Power Chain Reactions . | . . . . . Alert | -11 -10 -9 -8 -7 ------- Run | Yrd Mat Mat Mat Fac Maximum Alert Level 1 | . . 1 1 1 Low Security (%) 87 | 100 100 94 86 78 Level 1 12 | . . 5 13 21 Level 2 . | . . . . . Level 3 . | . . . . . Level 4 . | . . . . . Level 5 . | . . . . . High Security . | . . . . . Max Security . | . . . . . Peak Influence 357 | . 110 280 217 357 Initial 114 | . . 42 114 80 Average 84 | . 23 57 108 106 Influence Increases 1906 | . 192 456 432 826 Destroy 0b10 Robot/C 1120 | . 120 300 280 420 Destroy 0b10 Robot/NC 145 | . 5 30 70 40 Destroy Leader 234 | . 30 64 48 92 Successful Hack 7 | . 7 . . . Disable Machine 60 | . . 15 15 30 Destroy Structure 100 | . . 32 19 49 Lose Combat Pursuer 240 | . 30 15 . 195 Influence Decreases 1549 | . 92 284 526 647 Entered New Map 314 | . . 58 158 98 Time Decay 993 | . 92 186 348 367 Lost Part 242 | . . 40 20 182 Squads Dispatched 14 | . 1 2 1 10 Investigation . | . . . . . Extermination 2 | . . . . 2 Reinforcement 11 | . 1 2 1 7 Assault . | . . . . . Garrison 1 | . . . . 1 Intercept . | . . . . . Searches Triggered . | . . . . . Construction Impeded 2 | . . . . 2 Haulers Reinforced 2 | . . . . 2 Active Scanning Responses . | . . . . . Cargo Convoy Interrupts . | . . . . . Stealth | -11 -10 -9 -8 -7 --------- Run | Yrd Mat Mat Mat Fac Distress Signals 4 | . 1 . 1 2 Communications Jammed . | . . . . . Distress Signals . | . . . . . Times Spotted 110 | . 14 21 23 52 Peak Tracking Total 11 | . 4 5 5 11 Tactical Retreats 6 | . 1 1 . 4 Traps | -11 -10 -9 -8 -7 ------- Run | Yrd Mat Mat Mat Fac Traps Triggered 3 | . . 2 . 1 Indirectly . | . . . . . Trap Hack Attempts . | . . . . . Triggered . | . . . . . Disarmed . | . . . . . Reprogrammed . | . . . . . Reused . | . . . . . Traps Extracted . | . . . . . Installed . | . . . . . Triggered . | . . . . . Machines | -11 -10 -9 -8 -7 ---------- Run | Yrd Mat Mat Mat Fac Machines Disabled 4 | . . 1 1 2 Max in Single Turn 1 | . . 1 1 1 Machines Repaired . | . . . . . Machines Dismantled . | . . . . . Machines Sabotaged . | . . . . . Overloaded Fab Kills . | . . . . . Hacking | -11 -10 -9 -8 -7 --------- Run | Yrd Mat Mat Mat Fac Machines Accessed 2 | . 1 . . 1 Terminals 2 | . 1 . . 1 Fabricators . | . . . . . Repair Stations . | . . . . . Recycling Units . | . . . . . Scanalyzers . | . . . . . Garrison Access . | . . . . . Total Hacks 4 | . 1 . . 3 Successful 3 | . 1 . . 2 Failed 1 | . . . . 1 Catastrophic 1 | . . . . 1 Database Lockouts . | . . . . . Manual . | . . . . . Terminals 4 | . 1 . . 3 Fabricators . | . . . . . Repair Stations . | . . . . . Recycling Units . | . . . . . Scanalyzers . | . . . . . Garrison Access . | . . . . . Terminal Hacks 3 | . 1 . . 2 Record 2 | . . . . 2 Patrol Status 1 | . 1 . . . Fabricator Hacks . | . . . . . Repair Station Hacks . | . . . . . Recycling Unit Hacks . | . . . . . Scanalyzer . | . . . . . Garrison Access Hacks . | . . . . . Unauthorized Hacks . | . . . . . Terminals . | . . . . . Fabricators . | . . . . . Repair Stations . | . . . . . Recycling Units . | . . . . . Scanalyzers . | . . . . . Garrison Access . | . . . . . Data Cores Recovered 1 | . . . . 1 Used . | . . . . . Hacking Detections . | . . . . . Full Trace Events . | . . . . . Feedback Events . | . . . . . Feedback Blocked . | . . . . . Robot Schematics Acquired . | . . . . . Robots Built . | . . . . . Authchips . | . . . . . Time . | . . . . . Total Robot Build Rating . | . . . . . Part Schematics Acquired . | . . . . . Parts Built . | . . . . . Authchips . | . . . . . Time . | . . . . . Total Part Build Rating . | . . . . . Parts Repaired . | . . . . . Time . | . . . . . Parts Recycled . | . . . . . Recycled Matter . | . . . . . Retrieved Matter . | . . . . . Retrieved Components . | . . . . . Parts Scanalyzed . | . . . . . Part Schematics Acquired . | . . . . . Parts Damaged . | . . . . . Bothacking | -11 -10 -9 -8 -7 ------------ Run | Yrd Mat Mat Mat Fac Used RIF Installer . | . . . . . Robots Hacked . | . . . . . Non-combat . | . . . . . Combat . | . . . . . Robot Hacks Applied . | . . . . . Relay Couplers Released . | . . . . . Fabnet Peak Effective % . | . . . . . Robots Rewired . | . . . . . Allies Hacked . | . . . . . Hacks Repelled . | . . . . . Allies | -11 -10 -9 -8 -7 -------- Run | Yrd Mat Mat Mat Fac Total Allies . | . . . . . Largest Group . | . . . . . Highest-Rated Group . | . . . . . Highest-Rated Ally . | . . . . . Total Orders . | . . . . . Ally Attacks . | . . . . . Total Damage . | . . . . . Kills . | . . . . . Allies Corrupted . | . . . . . Allies Melted . | . . . . . Intel | -11 -10 -9 -8 -7 ------- Run | Yrd Mat Mat Mat Fac Active Infowar (turns) 9 | . . . . 9 ECM 9 | . . . . 9 Robot Analysis Total . | . . . . . Derelict Logs Recovered . | . . . . . Drone Launches . | . . . . . Drone Recoveries . | . . . . . Exploration | -11 -10 -9 -8 -7 ------------- Run | Yrd Mat Mat Mat Fac Turns Passed 2724 | 63 282 659 803 917 Spaces Moved 1721 | 54 181 386 382 718 Core 27 | 17 . . . 10 Treads . | . . . . . Legs 1312 | 37 181 386 382 326 Wheels . | . . . . . Hover 69 | . . . . 69 Flight 313 | . . . . 313 Fastest Speed 32 | 50 120 120 120 32 Average Speed 111 | 97 120 122 145 86 Slowest Speed 200 | 120 120 190 190 200 Overloaded Moves . | . . . . . Propulsion Burnouts . | . . . . . Robots Hopped . | . . . . . Potential Cave-ins . | . . . . . Cave-ins Triggered . | . . . . . Exploration Rate (%) 25 | 3 32 36 34 24 Regions Visited 4 Branch Regions . Pre-discovered Areas . | . . . . . Known Exits Taken . | . . . . . Unknown Exits Taken 4 | 1 1 1 1 . Scrap Searched . | . . . . . Spaces Dug 3 | . . . 3 . Terrain Destroyed 114 | . . 38 18 58 Melee . | . . . . . Projectile 18 | . . . 18 . AOE 96 | . . 38 . 58 Terrain Rammed . | . . . . . Walls Destroyed . | . . . . . Machines Disabled . | . . . . . Actions | -11 -10 -9 -8 -7 --------- Run | Yrd Mat Mat Mat Fac Total 2149 | 62 207 467 496 917 Wait 106 | . 5 3 15 83 Move 1717 | 53 180 385 381 718 Hop . | . . . . . Pick Up 32 | 4 1 11 4 12 Fast Attach 17 | . . 1 10 6 Attach 30 | 4 1 6 3 16 Detach 6 | . . 2 2 2 Swap 8 | . . 1 5 2 Drop 14 | . . 4 8 2 Fire 216 | 1 20 54 68 73 Melee 3 | . . . . 3 Ram . | . . . . . Kick . | . . . . . Crush . | . . . . . Escape Stasis . | . . . . . Rewire . | . . . . . Trap . | . . . . . Miscellaneous . | . . . . . Route ------- -11/Scrapyard -10/Materials -9/Materials -8/Materials (discovered 2 exits: *Fac x2) -7/Factory (discovered 1 exit: [*Sto]) History --------- Turn | Location | Event 8 | -11/Scrapyard | Discovered new exit (range 14) 64 | -11/Scrapyard | Entered Materials 317 | -10/Materials | Build established: Mutant 321 | -10/Materials | Discovered new exit (range 7) 346 | -10/Materials | Entered another Materials area 346 | -9/Materials | Evolved 2 slots: Utility x2 954 | -9/Materials | Discovered new exit (range 11) 1005 | -9/Materials | Entered another Materials area 1005 | -8/Materials | Evolved 2 slots: Weapon x2 1307 | -8/Materials | Discovered new exit (range 9) 1391 | -8/Materials | Destroyed 7 combat bots 1567 | -8/Materials | Build established: Gunner 1721 | -8/Materials | Discovered new exit (range 16) 1808 | -8/Materials | Entered Factory 1808 | -7/Factory | Evolved 2 slots: Propulsion x1, Utility x1 2481 | -7/Factory | Garrison activated, responded to threat 2540 | -7/Factory | Core integrity fell below 50% 2542 | -7/Factory | Destroyed 7 combat bots 2560 | -7/Factory | Core integrity fell below 20% 2591 | -7/Factory | Lost 14 parts (1p3n2u8w) 2720 | -7/Factory | Discovered new exit (range 14) 2725 | -7/Factory | Destroyed by S-27 Virus with Autogun Last Messages --------------- Identified Imp. Airjet. Acquired Autogun. Identified Prc. Assault Rifle. K-01 Serf cleans the Fusion Modulator. System corrupted: Heat flow error (+260). S-27 Virus destroyed. K-01 Serf cleans the Fusion Modulator. KJ8PTXHBHKYLD/S Slug penetrates Wall. K-01 Serf cleans the Fusion Modulator. ALERT: Potential suspicious activity detected, Programmers report to Factory Zone 1B. System corrupted: Matter fused (-9). ALERT: Suspicious intruders detected, dispatching Cutter reinforcements to area. EXIT=FOUND C-17 Slicer destroyed. S-27 Virus destroyed. Map ----- +----------------------------------------------------+ | ???????????/ # [ ## #??"" ?? | | ???????????# # """ ## #??"" ? | | ???????????+ # """ " ## # """ # | | ???????????# # """ T + + # | | ???????????# # " ##+#####???? | | ???????????# # ## ???????? | | ???????????# ####+#####+## ???????? | | ???????????# #????#* ??????? | | ???????????# #????# ??????? | | ???????????# #????# [ ?????? | | ???????????# #???## "?????? | | ???????????# #?? ##! ""????? | | ???#############+## #?? #? ""????? | | ? ! # #?? #? ?????? | | ? # ### ######?????? | | ? # #?????????? | | ??""" """ """ """ # #?????????? | | ??????""" """ """ # #?????????? | | ????" """ """ """ # #?????????? | | # # #?????????? | | ???????########+### #?????????? | | ???????????# #?????????? | | ???????????# #?????????? | | ???????????# #?????????? | | ???? ss s #?????????? | | %* @ #?????????? | | ##########+#+######### #?????????? | | ?????????????????????????# #?????????? | | ?????????????????????????# c#?????????? | | ?????????????????????????# ##+###????? | | ?????????????????????????# #????? | | ?????????????????????????# #????? | | ?????????????????????????# #????? | | ?????????????????????????######c #????? | | ??????????????????????????????#% #????? | | ??????????????????????????????# #????? | | ??????????????????????????????# /#????? | | ??????????????????????????????# #????? | | ??????????????????????????????# #????? | | ??????????????????????????????# #????? | | ??????????????????????????????# #????? | | ??????????????????????????????? #????? | | ??????????????????????????????? H #????? | | ??????????????????????????????? ????? | | ??????????????????????????????? ????? | | ??????????????????????????????? < ????? | | ??????????????????????????????? ????? | | ??????????????????????????????? ?????? | | ???????????????????????????????????????? | | ##?????????????????????????????????????? | +----------------------------------------------------+ Best States ------------- Heat Dissipation 59 Energy Generation 14 Energy Capacity 250 Matter Stores 500 Matter Capacity 500 Sight Range 16 Terrain Scan Density 10 ECM Strength 2 Base Temperature (-) 100 Evasion (%) 63 Target Analysis 5 Particle Charging 15 Offensive Hacking 10 Item Schematics ----------------- None Robot Schematics ------------------ None Fabricated ------------ Nothing Repaired ---------- Nothing Alien Tech Used ----------------- None Achievements -------------- None Challenges ------------ None Game ------ Seed TripodHypertargetingScythe Manual? 0 Play Time 00:26:03 Cumulative 108.1 hours Start 2025.08.29 @ 08:00:18 End 2025.08.29 @ 08:20:41 Sessions 1 Manual Loads 0 Difficulty Rogue Special Mode None Game No. 403 Rogue 403 Adventurer 0 Explorer 0 Win Type - Total 0 Types 0/0/0/0/0/0/0/0/0/0 Lore% 43 Gallery% 43 Achievement% 31 Wizard Run 0 Options --------- Layout 2 ASCII 0 Keyboard 0 Movement Mouse Keybinds 0 Fullscreen 2 Font 24/Smallcaps Map View 50x44 Zoom Use 0% Tactical HUD 0 Map Filters NONE Filters NONE Steam 1 RUN: 8abd832d-6930-432b-8735-7b52075b591b